[Event "Titled Tuesday Blitz February 07 Late 2023"]
[White "Ibarra Jerez, Jose Carlos"]
[Black "Ladan, Nicholas"]
[WhiteFideId "2226332"]
[BlackFideId "30918855"]
[WhiteElo "2563"]
[BlackElo "2228"]
[Result "1-0"]
[Round "02"]
[TimeControl "180+2"]
[Date "2023.02.07"]
[WhiteClock "0:00:25"]
[BlackClock "0:00:23"]

1. Nf3 {[%clk 0:03:00]}  d5 {[%clk 0:02:59]} 2. g3 {[%clk 0:03:00]}  Nf6 {[%clk 0:02:59]} 3. Bg2 {[%clk 0:03:01]}  Bg4 {[%clk 0:02:59]} 4. h3 {[%clk 0:02:59]}  Bxf3 {[%clk 0:02:59]} 5. Bxf3 {[%clk 0:03:00]}  Nbd7 {[%clk 0:03:00]} 6. O-O {[%clk 0:02:59]}  h5 {[%clk 0:03:00]} 7. d4 {[%clk 0:02:51]}  g5 {[%clk 0:02:58]} 8. Bxg5 {[%clk 0:02:49]}  Rg8 {[%clk 0:02:56]} 9. h4 {[%clk 0:02:45]}  Nh7 {[%clk 0:02:51]} 10. Bf4 {[%clk 0:02:41]}  e6 {[%clk 0:02:51]} 11. Bg2 {[%clk 0:02:33]}  Be7 {[%clk 0:02:40]} 12. e3 {[%clk 0:02:30]}  Nhf6 {[%clk 0:02:38]} 13. c4 {[%clk 0:02:29]}  c6 {[%clk 0:02:37]} 14. cxd5 {[%clk 0:02:24]}  cxd5 {[%clk 0:02:36]} 15. Nc3 {[%clk 0:02:24]}  Ng4 {[%clk 0:02:35]} 16. Nb5 {[%clk 0:02:15]}  Rc8 {[%clk 0:02:22]} 17. Rc1 {[%clk 0:02:09]}  a6 {[%clk 0:02:20]} 18. Nc7+ {[%clk 0:01:36]}  Kf8 {[%clk 0:02:19]} 19. Qc2 {[%clk 0:01:36]}  Nb6 {[%clk 0:02:10]} 20. Qh7 {[%clk 0:01:31]}  Bd6 {[%clk 0:01:52]} 21. Bh6+ {[%clk 0:01:02]}  Nxh6 {[%clk 0:01:42]} 22. Qxh6+ {[%clk 0:01:02]}  Ke7 {[%clk 0:01:38]} 23. Nxe6 {[%clk 0:00:58]}  fxe6 {[%clk 0:01:36]} 24. Qh7+ {[%clk 0:00:59]}  Kf8 {[%clk 0:01:31]} 25. Qxb7 {[%clk 0:00:55]}  Rxc1 {[%clk 0:01:25]} 26. Rxc1 {[%clk 0:00:55]}  Nc4 {[%clk 0:01:18]} 27. b3 {[%clk 0:00:51]}  Nb6 {[%clk 0:00:44]} 28. Rc6 {[%clk 0:00:49]}  Bxg3 {[%clk 0:00:36]} 29. fxg3 {[%clk 0:00:42]}  Rxg3 {[%clk 0:00:29]} 30. Rxb6 {[%clk 0:00:32]}  Qxh4 {[%clk 0:00:26]} 31. Qb8+ {[%clk 0:00:30]}  Kf7 {[%clk 0:00:25]} 32. Rb7+ {[%clk 0:00:30]}  Kg6 {[%clk 0:00:25]} 33. Qg8+ {[%clk 0:00:28]}  Kf5 {[%clk 0:00:23]} 34. Rf7+ {[%clk 0:00:25]} 1-0


[Site "https://www.chess.com"]

[Event "Titled Tuesday Blitz February 07 Late 2023"]
[White "Svane, Frederik"]
[Black "Sourath Biswas"]
[WhiteFideId "12923044"]
[BlackFideId "35091484"]
[WhiteElo "2600"]
[BlackElo "2281"]
[Result "1-0"]
[Round "02"]
[TimeControl "180+2"]
[Date "2023.02.07"]
[WhiteClock "0:00:30"]
[BlackClock "0:00:17"]

1. c4 {[%clk 0:03:00]}  Nf6 {[%clk 0:02:59]} 2. Nc3 {[%clk 0:02:58]}  g6 {[%clk 0:03:00]} 3. g3 {[%clk 0:02:58]}  Bg7 {[%clk 0:03:00]} 4. Bg2 {[%clk 0:02:58]}  O-O {[%clk 0:03:01]} 5. d3 {[%clk 0:02:59]}  d6 {[%clk 0:03:02]} 6. Rb1 {[%clk 0:02:52]}  a5 {[%clk 0:03:01]} 7. Nf3 {[%clk 0:02:51]}  e5 {[%clk 0:03:01]} 8. O-O {[%clk 0:02:51]}  Re8 {[%clk 0:03:00]} 9. a3 {[%clk 0:02:50]}  e4 {[%clk 0:02:59]} 10. dxe4 {[%clk 0:02:49]}  Nxe4 {[%clk 0:03:00]} 11. Nxe4 {[%clk 0:02:40]}  Rxe4 {[%clk 0:03:01]} 12. b3 {[%clk 0:02:06]}  Bf5 {[%clk 0:03:01]} 13. Bb2 {[%clk 0:02:04]}  a4 {[%clk 0:02:44]} 14. Bxg7 {[%clk 0:02:00]}  Kxg7 {[%clk 0:02:45]} 15. Nd2 {[%clk 0:01:52]}  Rd4 {[%clk 0:02:39]} 16. e3 {[%clk 0:01:41]}  Rxd2 {[%clk 0:02:15]} 17. Qxd2 {[%clk 0:01:42]}  Bxb1 {[%clk 0:02:16]} 18. Bxb7 {[%clk 0:01:42]}  axb3 {[%clk 0:01:43]} 19. Bxa8 {[%clk 0:01:40]}  Bc2 {[%clk 0:01:44]} 20. Be4 {[%clk 0:01:40]}  Bxe4 {[%clk 0:01:41]} 21. Qd4+ {[%clk 0:01:40]}  Qf6 {[%clk 0:01:41]} 22. Qxe4 {[%clk 0:01:41]}  Nd7 {[%clk 0:01:37]} 23. Rb1 {[%clk 0:01:39]}  Nc5 {[%clk 0:01:35]} 24. Qd4 {[%clk 0:01:40]}  g5 {[%clk 0:01:23]} 25. a4 {[%clk 0:01:34]}  Kg6 {[%clk 0:01:21]} 26. Qxf6+ {[%clk 0:01:30]}  Kxf6 {[%clk 0:01:22]} 27. a5 {[%clk 0:01:31]}  d5 {[%clk 0:01:03]} 28. cxd5 {[%clk 0:01:24]}  Ke5 {[%clk 0:01:03]} 29. Rxb3 {[%clk 0:01:20]}  Kxd5 {[%clk 0:00:50]} 30. Rc3 {[%clk 0:01:17]}  Na6 {[%clk 0:00:49]} 31. Kf1 {[%clk 0:01:16]}  c5 {[%clk 0:00:49]} 32. Ke2 {[%clk 0:01:16]}  Kc6 {[%clk 0:00:49]} 33. Rb3 {[%clk 0:01:05]}  Nb4 {[%clk 0:00:49]} 34. Kd2 {[%clk 0:00:52]}  Kb5 {[%clk 0:00:49]} 35. Ra3 {[%clk 0:00:52]}  c4 {[%clk 0:00:46]} 36. Kc3 {[%clk 0:00:49]}  Nd5+ {[%clk 0:00:47]} 37. Kd4 {[%clk 0:00:50]}  Nb4 {[%clk 0:00:47]} 38. a6 {[%clk 0:00:32]}  Nc2+ {[%clk 0:00:23]} 39. Kc3 {[%clk 0:00:32]}  Nxa3 {[%clk 0:00:24]} 40. a7 {[%clk 0:00:33]}  Kc5 {[%clk 0:00:24]} 41. a8=Q {[%clk 0:00:32]}  Nb5+ {[%clk 0:00:24]} 42. Kc2 {[%clk 0:00:31]}  Kb4 {[%clk 0:00:25]} 43. Qf8+ {[%clk 0:00:31]}  Ka4 {[%clk 0:00:23]} 44. Qxf7 {[%clk 0:00:31]}  Kb4 {[%clk 0:00:21]} 45. Qe7+ {[%clk 0:00:31]}  Ka4 {[%clk 0:00:21]} 46. Qxg5 {[%clk 0:00:30]}  Kb4 {[%clk 0:00:22]} 47. Qe7+ {[%clk 0:00:31]}  Ka4 {[%clk 0:00:22]} 48. Qxh7 {[%clk 0:00:32]}  Kb4 {[%clk 0:00:22]} 49. Qe7+ {[%clk 0:00:32]}  Ka4 {[%clk 0:00:22]} 50. h4 {[%clk 0:00:33]}  c3 {[%clk 0:00:17]} 51. h5 {[%clk 0:00:30]} 1-0


[Site "https://www.chess.com"]

[Event "Titled Tuesday Blitz February 07 Late 2023"]
[White "Czopor, Maciej"]
[Black "Suleymanli, Aydin"]
[WhiteFideId "21805431"]
[BlackFideId "13413937"]
[WhiteElo "2385"]
[BlackElo "2560"]
[Result "1-0"]
[Round "02"]
[TimeControl "180+2"]
[Date "2023.02.07"]
[WhiteClock "0:00:05"]
[BlackClock "0:01:06"]

1. c4 {[%clk 0:02:58]}  e6 {[%clk 0:02:58]} 2. Nc3 {[%clk 0:02:53]}  d5 {[%clk 0:02:58]} 3. e3 {[%clk 0:02:52]}  a6 {[%clk 0:02:55]} 4. Nf3 {[%clk 0:02:51]}  Nf6 {[%clk 0:02:55]} 5. b3 {[%clk 0:02:50]}  c5 {[%clk 0:02:51]} 6. cxd5 {[%clk 0:02:46]}  exd5 {[%clk 0:02:52]} 7. d4 {[%clk 0:02:47]}  Nc6 {[%clk 0:02:48]} 8. Be2 {[%clk 0:02:46]}  cxd4 {[%clk 0:02:36]} 9. Nxd4 {[%clk 0:02:47]}  Bb4 {[%clk 0:02:36]} 10. Bd2 {[%clk 0:02:40]}  Nxd4 {[%clk 0:02:35]} 11. exd4 {[%clk 0:02:41]}  Qa5 {[%clk 0:02:16]} 12. Rc1 {[%clk 0:02:07]}  Bf5 {[%clk 0:01:51]} 13. O-O {[%clk 0:02:06]}  Rc8 {[%clk 0:01:51]} 14. Nb1 {[%clk 0:01:32]}  Rxc1 {[%clk 0:01:41]} 15. Qxc1 {[%clk 0:01:33]}  O-O {[%clk 0:01:28]} 16. Bxb4 {[%clk 0:00:37]}  Qxb4 {[%clk 0:01:28]} 17. Qb2 {[%clk 0:00:38]}  Rc8 {[%clk 0:01:23]} 18. a3 {[%clk 0:00:30]}  Qb6 {[%clk 0:01:16]} 19. Bd1 {[%clk 0:00:04]}  Bxb1 {[%clk 0:01:13]} 20. Qxb1 {[%clk 0:00:05]}  Qxd4 {[%clk 0:01:13]} 21. Bf3 {[%clk 0:00:06]}  g6 {[%clk 0:01:05]} 22. Rd1 {[%clk 0:00:05]}  Qc4 {[%clk 0:01:06]} 23. bxc4 {[%clk 0:00:05]} 1-0


[Site "https://www.chess.com"]

[Event "Titled Tuesday Blitz February 07 Late 2023"]
[White "Cella, Glaucio Dalla Cortt"]
[Black "Melkumyan, Hrant"]
[WhiteFideId "2119455"]
[BlackFideId "13302485"]
[WhiteElo "1894"]
[BlackElo "2645"]
[Result "1/2-1/2"]
[Round "02"]
[TimeControl "180+2"]
[Date "2023.02.07"]
[WhiteClock "0:00:18"]
[BlackClock "0:00:06"]

1. e4 {[%clk 0:03:00]}  c6 {[%clk 0:03:00]} 2. Nf3 {[%clk 0:03:00]}  d5 {[%clk 0:03:01]} 3. exd5 {[%clk 0:03:00]}  cxd5 {[%clk 0:03:00]} 4. d4 {[%clk 0:03:01]}  Nf6 {[%clk 0:03:01]} 5. c3 {[%clk 0:03:02]}  g6 {[%clk 0:03:00]} 6. Be2 {[%clk 0:02:59]}  Nc6 {[%clk 0:02:58]} 7. O-O {[%clk 0:02:59]}  Bf5 {[%clk 0:02:55]} 8. Ne5 {[%clk 0:02:58]}  Bg7 {[%clk 0:02:53]} 9. Qb3 {[%clk 0:02:54]}  Qc8 {[%clk 0:02:49]} 10. Bf4 {[%clk 0:02:47]}  O-O {[%clk 0:02:48]} 11. Nd2 {[%clk 0:02:31]}  Nd7 {[%clk 0:02:44]} 12. Nxc6 {[%clk 0:02:26]}  bxc6 {[%clk 0:02:43]} 13. Nf3 {[%clk 0:02:25]}  Bg4 {[%clk 0:02:40]} 14. h3 {[%clk 0:02:24]}  Bxf3 {[%clk 0:02:39]} 15. Bxf3 {[%clk 0:02:25]}  e6 {[%clk 0:02:38]} 16. Rfe1 {[%clk 0:02:22]}  a5 {[%clk 0:02:35]} 17. a4 {[%clk 0:02:21]}  c5 {[%clk 0:02:34]} 18. Bd6 {[%clk 0:02:17]}  cxd4 {[%clk 0:02:25]} 19. Bxf8 {[%clk 0:02:16]}  Qxf8 {[%clk 0:02:19]} 20. cxd4 {[%clk 0:02:15]}  Bxd4 {[%clk 0:02:16]} 21. Rad1 {[%clk 0:02:14]}  Rb8 {[%clk 0:02:08]} 22. Qa3 {[%clk 0:01:48]}  Bc5 {[%clk 0:02:03]} 23. Qa1 {[%clk 0:01:02]}  Rb4 {[%clk 0:02:02]} 24. Qc1 {[%clk 0:00:59]}  Rxa4 {[%clk 0:01:53]} 25. Bxd5 {[%clk 0:00:55]}  exd5 {[%clk 0:01:39]} 26. Rxd5 {[%clk 0:00:56]}  Rd4 {[%clk 0:01:28]} 27. Rxd4 {[%clk 0:00:53]}  Bxd4 {[%clk 0:01:29]} 28. Qd2 {[%clk 0:00:53]}  Qc5 {[%clk 0:00:29]} 29. Rd1 {[%clk 0:00:53]}  Be5 {[%clk 0:00:18]} 30. Qxd7 {[%clk 0:00:53]}  Bxb2 {[%clk 0:00:19]} 31. Qd6 {[%clk 0:00:45]}  Qxd6 {[%clk 0:00:15]} 32. Rxd6 {[%clk 0:00:46]}  a4 {[%clk 0:00:16]} 33. Ra6 {[%clk 0:00:41]}  a3 {[%clk 0:00:17]} 34. Kf1 {[%clk 0:00:41]}  Kf8 {[%clk 0:00:18]} 35. Ke2 {[%clk 0:00:37]}  Ke7 {[%clk 0:00:18]} 36. f3 {[%clk 0:00:36]}  h5 {[%clk 0:00:17]} 37. g4 {[%clk 0:00:35]}  hxg4 {[%clk 0:00:13]} 38. hxg4 {[%clk 0:00:35]}  Kd7 {[%clk 0:00:13]} 39. Kd3 {[%clk 0:00:30]}  Kc7 {[%clk 0:00:12]} 40. Kc2 {[%clk 0:00:30]}  Kd7 {[%clk 0:00:12]} 41. Kb3 {[%clk 0:00:26]}  Ke7 {[%clk 0:00:12]} 42. f4 {[%clk 0:00:22]}  Bc1 {[%clk 0:00:08]} 43. f5 {[%clk 0:00:22]}  gxf5 {[%clk 0:00:08]} 44. gxf5 {[%clk 0:00:23]}  Bb2 {[%clk 0:00:09]} 45. f6+ {[%clk 0:00:19]}  Kd7 {[%clk 0:00:09]} 46. Ka2 {[%clk 0:00:17]}  Bc1 {[%clk 0:00:09]} 47. Kb3 {[%clk 0:00:17]}  Bb2 {[%clk 0:00:09]} 48. Ka2 {[%clk 0:00:18]}  Bc1 {[%clk 0:00:06]} 49. Kb3 {[%clk 0:00:18]}  Bb2 {[%clk 0:00:06]} 1/2-1/2


[Site "https://www.chess.com"]

[Event "Titled Tuesday Blitz February 07 Late 2023"]
[White "Swiercz, Dariusz"]
[Black "Taboas Rodriguez, Daniel"]
[WhiteFideId "1126881"]
[BlackFideId "2208466"]
[WhiteElo "2637"]
[BlackElo "2371"]
[Result "1-0"]
[Round "02"]
[TimeControl "180+2"]
[Date "2023.02.07"]
[WhiteClock "0:01:00"]
[BlackClock "0:01:13"]

1. d4 {[%clk 0:02:54]}  Nf6 {[%clk 0:02:59]} 2. Bg5 {[%clk 0:02:52]}  d5 {[%clk 0:02:58]} 3. e3 {[%clk 0:02:52]}  e6 {[%clk 0:02:47]} 4. Nd2 {[%clk 0:02:50]}  Be7 {[%clk 0:02:47]} 5. Bd3 {[%clk 0:02:49]}  c5 {[%clk 0:02:46]} 6. c3 {[%clk 0:02:49]}  h6 {[%clk 0:02:43]} 7. Bh4 {[%clk 0:02:48]}  b6 {[%clk 0:02:42]} 8. Ngf3 {[%clk 0:02:47]}  Bb7 {[%clk 0:02:42]} 9. Ne5 {[%clk 0:02:44]}  O-O {[%clk 0:02:41]} 10. f4 {[%clk 0:02:28]}  Ne4 {[%clk 0:02:40]} 11. Bxe7 {[%clk 0:02:26]}  Qxe7 {[%clk 0:02:41]} 12. O-O {[%clk 0:02:25]}  Nd7 {[%clk 0:02:38]} 13. Qe2 {[%clk 0:01:59]}  Nxd2 {[%clk 0:02:27]} 14. Qxd2 {[%clk 0:02:00]}  Nf6 {[%clk 0:02:27]} 15. a4 {[%clk 0:01:55]}  a5 {[%clk 0:02:23]} 16. Qe2 {[%clk 0:01:54]}  Ne4 {[%clk 0:02:11]} 17. Rfd1 {[%clk 0:01:53]}  Rfd8 {[%clk 0:02:02]} 18. Rac1 {[%clk 0:01:42]}  f6 {[%clk 0:02:02]} 19. Nf3 {[%clk 0:01:40]}  Bc6 {[%clk 0:01:56]} 20. Ra1 {[%clk 0:01:34]}  Qe8 {[%clk 0:01:51]} 21. Qc2 {[%clk 0:01:25]}  Rac8 {[%clk 0:01:44]} 22. Nd2 {[%clk 0:01:21]}  Nxd2 {[%clk 0:01:26]} 23. Rxd2 {[%clk 0:01:22]}  e5 {[%clk 0:01:26]} 24. Bg6 {[%clk 0:01:13]}  Qe7 {[%clk 0:01:26]} 25. fxe5 {[%clk 0:01:07]}  fxe5 {[%clk 0:01:26]} 26. Rf2 {[%clk 0:01:05]}  Be8 {[%clk 0:01:25]} 27. Raf1 {[%clk 0:01:00]}  cxd4 {[%clk 0:01:18]} 28. Bh7+ {[%clk 0:00:59]}  Kh8 {[%clk 0:01:13]} 29. Rf8+ {[%clk 0:01:00]} 1-0


[Site "https://www.chess.com"]

[Event "Titled Tuesday Blitz February 07 Late 2023"]
[White "Brodowski, Piotr"]
[Black "Zhigalko, Sergei"]
[WhiteFideId "1124480"]
[BlackFideId "13502956"]
[WhiteElo "2457"]
[BlackElo "2572"]
[Result "0-1"]
[Round "02"]
[TimeControl "180+2"]
[Date "2023.02.07"]
[WhiteClock "0:01:56"]
[BlackClock "0:02:05"]

1. c4 {[%clk 0:03:00]}  e5 {[%clk 0:03:00]} 2. Nc3 {[%clk 0:02:59]}  Nf6 {[%clk 0:03:00]} 3. Nf3 {[%clk 0:02:59]}  Nc6 {[%clk 0:03:00]} 4. e4 {[%clk 0:02:46]}  Bb4 {[%clk 0:02:58]} 5. d3 {[%clk 0:02:42]}  d6 {[%clk 0:02:55]} 6. a3 {[%clk 0:02:42]}  Bc5 {[%clk 0:02:55]} 7. b4 {[%clk 0:02:42]}  Bb6 {[%clk 0:02:55]} 8. Na4 {[%clk 0:02:43]}  Bg4 {[%clk 0:02:55]} 9. Bb2 {[%clk 0:02:38]}  Bd4 {[%clk 0:02:52]} 10. Be2 {[%clk 0:02:25]}  Bxf3 {[%clk 0:02:52]} 11. Bxf3 {[%clk 0:02:24]}  Bxb2 {[%clk 0:02:49]} 12. Nxb2 {[%clk 0:02:24]}  Nd4 {[%clk 0:02:50]} 13. O-O {[%clk 0:02:24]}  O-O {[%clk 0:02:50]} 14. Be2 {[%clk 0:02:23]}  a5 {[%clk 0:02:49]} 15. b5 {[%clk 0:02:19]}  Nd7 {[%clk 0:02:47]} 16. Na4 {[%clk 0:02:17]}  Qg5 {[%clk 0:02:43]} 17. Nc3 {[%clk 0:02:15]}  Nc5 {[%clk 0:02:41]} 18. g3 {[%clk 0:02:12]}  f5 {[%clk 0:02:37]} 19. Bf3 {[%clk 0:02:08]}  Nxf3+ {[%clk 0:02:23]} 20. Qxf3 {[%clk 0:02:08]}  fxe4 {[%clk 0:02:24]} 21. Nxe4 {[%clk 0:02:01]}  Rxf3 {[%clk 0:02:22]} 22. Nxg5 {[%clk 0:02:01]}  Rxd3 {[%clk 0:02:23]} 23. f4 {[%clk 0:02:02]}  h6 {[%clk 0:02:18]} 24. Nf3 {[%clk 0:02:00]}  exf4 {[%clk 0:02:18]} 25. gxf4 {[%clk 0:02:00]}  Re8 {[%clk 0:02:13]} 26. f5 {[%clk 0:01:58]}  Re4 {[%clk 0:02:05]} 27. f6 {[%clk 0:01:55]}  gxf6 {[%clk 0:02:05]} 28. Kh1 {[%clk 0:01:56]} 0-1


[Site "https://www.chess.com"]

[Event "Titled Tuesday Blitz February 07 Late 2023"]
[White "Golubev, Mikhail"]
[Black "Grigorov, Grigor"]
[WhiteFideId "14100983"]
[BlackFideId "2907313"]
[WhiteElo "2461"]
[BlackElo "2510"]
[Result "0-1"]
[Round "02"]
[TimeControl "180+2"]
[Date "2023.02.07"]
[WhiteClock "0:00:01"]
[BlackClock "0:00:09"]

1. e4 {[%clk 0:03:00]}  c6 {[%clk 0:02:59]} 2. d4 {[%clk 0:02:59]}  d5 {[%clk 0:03:00]} 3. Nc3 {[%clk 0:03:00]}  dxe4 {[%clk 0:03:00]} 4. Nxe4 {[%clk 0:03:00]}  Nf6 {[%clk 0:03:00]} 5. Nxf6+ {[%clk 0:03:00]}  exf6 {[%clk 0:03:01]} 6. c3 {[%clk 0:02:59]}  Bd6 {[%clk 0:02:58]} 7. Bd3 {[%clk 0:02:59]}  Na6 {[%clk 0:02:57]} 8. Ne2 {[%clk 0:02:54]}  Nc7 {[%clk 0:02:57]} 9. Qc2 {[%clk 0:02:53]}  h5 {[%clk 0:02:56]} 10. Bf4 {[%clk 0:02:45]}  Nd5 {[%clk 0:02:52]} 11. Bxd6 {[%clk 0:02:43]}  Qxd6 {[%clk 0:02:53]} 12. O-O-O {[%clk 0:02:35]}  Kf8 {[%clk 0:02:51]} 13. Kb1 {[%clk 0:02:30]}  g6 {[%clk 0:02:42]} 14. h4 {[%clk 0:02:26]}  b5 {[%clk 0:02:39]} 15. Be4 {[%clk 0:02:17]}  Be6 {[%clk 0:02:36]} 16. Rhe1 {[%clk 0:02:02]}  Kg7 {[%clk 0:02:35]} 17. g3 {[%clk 0:01:55]}  a5 {[%clk 0:02:32]} 18. Ka1 {[%clk 0:01:41]}  a4 {[%clk 0:02:24]} 19. Nc1 {[%clk 0:01:33]}  b4 {[%clk 0:02:05]} 20. cxb4 {[%clk 0:01:30]}  Nxb4 {[%clk 0:02:02]} 21. Qc5 {[%clk 0:01:25]}  Qb8 {[%clk 0:01:59]} 22. a3 {[%clk 0:01:10]}  Nd5 {[%clk 0:01:59]} 23. Bb1 {[%clk 0:01:01]}  Ra6 {[%clk 0:01:51]} 24. Ba2 {[%clk 0:01:00]}  Rb6 {[%clk 0:01:49]} 25. Rd2 {[%clk 0:00:58]}  Qb7 {[%clk 0:01:46]} 26. Nd3 {[%clk 0:00:57]}  Rb8 {[%clk 0:01:39]} 27. Qc1 {[%clk 0:00:56]}  Bf5 {[%clk 0:01:34]} 28. Nc5 {[%clk 0:00:53]}  Qa7 {[%clk 0:01:34]} 29. Bxd5 {[%clk 0:00:44]}  cxd5 {[%clk 0:01:34]} 30. Qc3 {[%clk 0:00:40]}  Rb5 {[%clk 0:01:27]} 31. Rde2 {[%clk 0:00:39]}  Qa8 {[%clk 0:00:50]} 32. Qe3 {[%clk 0:00:38]}  Qc6 {[%clk 0:00:43]} 33. Qf4 {[%clk 0:00:35]}  Qb6 {[%clk 0:00:39]} 34. Qd2 {[%clk 0:00:24]}  Rxc5 {[%clk 0:00:29]} 35. dxc5 {[%clk 0:00:23]}  Qxc5 {[%clk 0:00:29]} 36. Rc1 {[%clk 0:00:21]}  Qd6 {[%clk 0:00:28]} 37. Qf4 {[%clk 0:00:18]}  Qb6 {[%clk 0:00:25]} 38. f3 {[%clk 0:00:17]}  d4 {[%clk 0:00:24]} 39. g4 {[%clk 0:00:13]}  d3 {[%clk 0:00:20]} 40. Rd2 {[%clk 0:00:12]}  Be6 {[%clk 0:00:20]} 41. Qb4 {[%clk 0:00:09]}  Qa7 {[%clk 0:00:17]} 42. Qd6 {[%clk 0:00:07]}  Qb7 {[%clk 0:00:11]} 43. Qb4 {[%clk 0:00:05]}  Qa8 {[%clk 0:00:10]} 44. Qd6 {[%clk 0:00:05]}  Rb3 {[%clk 0:00:09]} 45. g5 {[%clk 0:00:04]}  Qxf3 {[%clk 0:00:08]} 46. gxf6+ {[%clk 0:00:02]}  Qxf6 {[%clk 0:00:09]} 47. Qc6 {[%clk 0:00:01]}  Rxa3+ {[%clk 0:00:09]} 0-1


[Site "https://www.chess.com"]

[Event "Titled Tuesday Blitz February 07 Late 2023"]
[White "Osmak, Yuliia"]
[Black "Stoyanov, Tsvetan"]
[WhiteFideId "14101602"]
[BlackFideId "2917173"]
[WhiteElo "2440"]
[BlackElo "2454"]
[Result "1/2-1/2"]
[Round "02"]
[TimeControl "180+2"]
[Date "2023.02.07"]
[WhiteClock "0:00:02"]
[BlackClock "0:00:05"]

1. e4 {[%clk 0:03:00]}  c5 {[%clk 0:03:00]} 2. c3 {[%clk 0:02:59]}  g6 {[%clk 0:02:58]} 3. d4 {[%clk 0:02:58]}  cxd4 {[%clk 0:02:58]} 4. cxd4 {[%clk 0:02:59]}  d5 {[%clk 0:02:58]} 5. e5 {[%clk 0:03:00]}  Nc6 {[%clk 0:02:59]} 6. Nc3 {[%clk 0:02:53]}  Bg7 {[%clk 0:02:57]} 7. h3 {[%clk 0:02:39]}  f6 {[%clk 0:02:55]} 8. exf6 {[%clk 0:02:35]}  Nxf6 {[%clk 0:02:56]} 9. Nf3 {[%clk 0:02:34]}  O-O {[%clk 0:02:56]} 10. Bd3 {[%clk 0:02:33]}  Nh5 {[%clk 0:02:47]} 11. Be3 {[%clk 0:02:30]}  Nf4 {[%clk 0:02:45]} 12. O-O {[%clk 0:02:26]}  Nxd3 {[%clk 0:02:40]} 13. Qxd3 {[%clk 0:02:27]}  Bxh3 {[%clk 0:02:40]} 14. Qb5 {[%clk 0:02:22]}  Bg4 {[%clk 0:02:23]} 15. Nh2 {[%clk 0:02:06]}  Be6 {[%clk 0:02:20]} 16. Qxb7 {[%clk 0:02:05]}  Nxd4 {[%clk 0:02:11]} 17. Rad1 {[%clk 0:02:03]}  Nf5 {[%clk 0:01:58]} 18. Nxd5 {[%clk 0:02:00]}  Bxd5 {[%clk 0:01:33]} 19. Rxd5 {[%clk 0:01:59]}  Qe8 {[%clk 0:01:33]} 20. Bxa7 {[%clk 0:01:49]}  Nd6 {[%clk 0:01:27]} 21. Qb3 {[%clk 0:01:39]}  Qf7 {[%clk 0:01:22]} 22. Bd4 {[%clk 0:01:30]}  Rab8 {[%clk 0:01:12]} 23. Qf3 {[%clk 0:01:23]}  Qe6 {[%clk 0:01:11]} 24. Qc3 {[%clk 0:00:58]}  Qxd5 {[%clk 0:00:56]} 25. Bxg7 {[%clk 0:00:57]}  Ne4 {[%clk 0:00:32]} 26. Qe5 {[%clk 0:00:56]}  Qxe5 {[%clk 0:00:31]} 27. Bxe5 {[%clk 0:00:57]}  Rb5 {[%clk 0:00:31]} 28. f4 {[%clk 0:00:46]}  Nd2 {[%clk 0:00:24]} 29. Rc1 {[%clk 0:00:41]}  g5 {[%clk 0:00:23]} 30. Ng4 {[%clk 0:00:38]}  Kf7 {[%clk 0:00:17]} 31. fxg5 {[%clk 0:00:35]}  Kg6 {[%clk 0:00:16]} 32. Bc3 {[%clk 0:00:26]}  Ne4 {[%clk 0:00:17]} 33. Ne5+ {[%clk 0:00:23]}  Kxg5 {[%clk 0:00:17]} 34. Bd4 {[%clk 0:00:24]}  Rd5 {[%clk 0:00:16]} 35. Be3+ {[%clk 0:00:23]}  Kf6 {[%clk 0:00:11]} 36. Rf1+ {[%clk 0:00:22]}  Kg7 {[%clk 0:00:12]} 37. Nf3 {[%clk 0:00:17]}  Rdf5 {[%clk 0:00:10]} 38. Bd4+ {[%clk 0:00:17]}  Kg8 {[%clk 0:00:09]} 39. Re1 {[%clk 0:00:17]}  Rf4 {[%clk 0:00:06]} 40. a4 {[%clk 0:00:16]}  e6 {[%clk 0:00:03]} 41. a5 {[%clk 0:00:16]}  Ng3 {[%clk 0:00:03]} 42. a6 {[%clk 0:00:15]}  Nf5 {[%clk 0:00:03]} 43. Bf2 {[%clk 0:00:13]}  Ra8 {[%clk 0:00:03]} 44. a7 {[%clk 0:00:14]}  Nd6 {[%clk 0:00:03]} 45. Rxe6 {[%clk 0:00:13]}  Nb5 {[%clk 0:00:04]} 46. Rb6 {[%clk 0:00:12]}  Nxa7 {[%clk 0:00:04]} 47. Ra6 {[%clk 0:00:12]}  Rf7 {[%clk 0:00:04]} 48. Ne5 {[%clk 0:00:12]}  Rg7 {[%clk 0:00:04]} 49. Nc6 {[%clk 0:00:12]}  Nxc6 {[%clk 0:00:05]} 50. Rxa8+ {[%clk 0:00:12]}  Kf7 {[%clk 0:00:06]} 51. Ra6 {[%clk 0:00:11]}  Nb4 {[%clk 0:00:05]} 52. Ra7+ {[%clk 0:00:11]}  Kg6 {[%clk 0:00:06]} 53. Rxg7+ {[%clk 0:00:12]}  Kxg7 {[%clk 0:00:07]} 54. Bd4+ {[%clk 0:00:12]}  Kg6 {[%clk 0:00:07]} 55. Bc3 {[%clk 0:00:13]}  Nd3 {[%clk 0:00:06]} 56. Kf1 {[%clk 0:00:13]}  Kf5 {[%clk 0:00:07]} 57. Ke2 {[%clk 0:00:14]}  Nf4+ {[%clk 0:00:07]} 58. Kf3 {[%clk 0:00:14]}  Nd5 {[%clk 0:00:08]} 59. Bd4 {[%clk 0:00:13]}  h5 {[%clk 0:00:08]} 60. Be3 {[%clk 0:00:12]}  Nb4 {[%clk 0:00:07]} 61. Bd2 {[%clk 0:00:12]}  Nc2 {[%clk 0:00:06]} 62. b4 {[%clk 0:00:10]}  Ke5 {[%clk 0:00:06]} 63. Bc3+ {[%clk 0:00:10]}  Kd5 {[%clk 0:00:06]} 64. Kf4 {[%clk 0:00:09]}  Kc4 {[%clk 0:00:06]} 65. Bd2 {[%clk 0:00:08]}  Nd4 {[%clk 0:00:03]} 66. Kg5 {[%clk 0:00:07]}  Ne2 {[%clk 0:00:02]} 67. Kxh5 {[%clk 0:00:07]}  Ng3+ {[%clk 0:00:03]} 68. Kg4 {[%clk 0:00:06]}  Ne4 {[%clk 0:00:04]} 69. Be1 {[%clk 0:00:07]}  Nf6+ {[%clk 0:00:04]} 70. Kf5 {[%clk 0:00:07]}  Nd5 {[%clk 0:00:04]} 71. g4 {[%clk 0:00:07]}  Ne3+ {[%clk 0:00:05]} 72. Kf4 {[%clk 0:00:06]}  Ng2+ {[%clk 0:00:05]} 73. Ke4 {[%clk 0:00:06]}  Nxe1 {[%clk 0:00:06]} 74. g5 {[%clk 0:00:06]}  Nd3 {[%clk 0:00:04]} 75. g6 {[%clk 0:00:06]}  Nf2+ {[%clk 0:00:05]} 76. Kf5 {[%clk 0:00:05]}  Nd3 {[%clk 0:00:02]} 77. g7 {[%clk 0:00:05]}  Nxb4 {[%clk 0:00:03]} 78. g8=Q+ {[%clk 0:00:06]}  Kc3 {[%clk 0:00:02]} 79. Qc8+ {[%clk 0:00:06]}  Kd3 {[%clk 0:00:02]} 80. Qd7+ {[%clk 0:00:05]}  Kc3 {[%clk 0:00:03]} 81. Qc8+ {[%clk 0:00:06]}  Kb3 {[%clk 0:00:03]} 82. Ke4 {[%clk 0:00:06]}  Nc2 {[%clk 0:00:03]} 83. Kd3 {[%clk 0:00:06]}  Nb4+ {[%clk 0:00:04]} 84. Kd2 {[%clk 0:00:06]}  Ka3 {[%clk 0:00:03]} 85. Qc3+ {[%clk 0:00:06]}  Ka4 {[%clk 0:00:04]} 86. Qh8 {[%clk 0:00:06]}  Kb5 {[%clk 0:00:04]} 87. Kc3 {[%clk 0:00:06]}  Kc5 {[%clk 0:00:04]} 88. Qh5+ {[%clk 0:00:05]}  Nd5+ {[%clk 0:00:04]} 89. Kd3 {[%clk 0:00:06]}  Kd6 {[%clk 0:00:04]} 90. Qh6+ {[%clk 0:00:04]}  Ke5 {[%clk 0:00:05]} 91. Qh1 {[%clk 0:00:05]}  Nf4+ {[%clk 0:00:05]} 92. Ke3 {[%clk 0:00:03]}  Nd5+ {[%clk 0:00:04]} 93. Kf3 {[%clk 0:00:03]}  Nf6 {[%clk 0:00:04]} 94. Qh4 {[%clk 0:00:02]}  Kf5 {[%clk 0:00:04]} 95. Qg3 {[%clk 0:00:02]}  Ke6 {[%clk 0:00:03]} 96. Qh3+ {[%clk 0:00:01]}  Ke5 {[%clk 0:00:04]} 97. Ke3 {[%clk 0:00:02]}  Nd5+ {[%clk 0:00:04]} 98. Kd3 {[%clk 0:00:02]}  Nf4+ {[%clk 0:00:04]} 99. Kc3 {[%clk 0:00:02]}  Nxh3 {[%clk 0:00:05]} 1/2-1/2


[Site "https://www.chess.com"]